fUSD/lending_fUSD_20250413
["ID","MTS","AMOUNT","RATE_DAILY","PERIOD"]
[357893210,1744521032033,-500.0,0.00019178,2]
[357893211,1744521032043,-500.0,0.00019178,2]
[357893212,1744521032052,-500.0,0.00019178,2]
[357893213,1744521032061,-500.0,0.00019178,2]
[357893214,1744521032070,-558.13906411,0.00019178,2]
[357893215,1744521032079,-500.0,0.00019178,2]
[357893216,1744521032089,-533.56941121,0.00019178,2]
[357893217,1744521032098,-500.0,0.00019178,2]
[357893218,1744521032107,-500.0,0.00019178,2]
[357893219,1744521032117,-500.0,0.00019178,2]
[357893220,1744521032127,-500.0,0.00019178,2]
[357893221,1744521032136,-500.0,0.00019178,2]
[357893222,1744521032146,-500.0,0.00019178,2]
[357893223,1744521032156,-500.0,0.00019178,2]
[357893224,1744521032166,-150.0,0.00019178,2]
[357893225,1744521032175,-780.98,0.00019178,2]
[357893226,1744521032184,-500.0,0.00019178,2]
[357893227,1744521032194,-500.0,0.00019178,2]
[357893228,1744521032203,-521.23222812,0.00019178,2]
[357893229,1744521032213,-500.0,0.00019178,2]
[357893230,1744521032222,-500.0,0.00019178,2]
[357893231,1744521032232,-500.0,0.00019178,2]
[357893232,1744521032241,-398.26620241,0.00019178,2]
[357893233,1744521032251,-500.0,0.00019178,2]
[357893234,1744521032260,-500.0,0.00019178,2]
[357893235,1744521032270,-500.0,0.00019178,2]
[357893236,1744521032280,-531.91109091,0.00019178,2]
[357893237,1744521032289,-536.75249254,0.00019178,2]
[357893238,1744521032300,-198.73386326,0.00019178,2]
[357893239,1744521032311,-500.0,0.00019178,2]
[357893240,1744521032321,-500.0,0.00019178,2]
[357893241,1744521032330,-775.79,0.00019178,2]
[357893242,1744521032340,-500.0,0.00019178,2]
[357893243,1744521032349,-500.0,0.00019178,2]
[357893244,1744521032359,-500.0,0.00019178,2]
[357893245,1744521032369,-500.0,0.00019178,2]
[357893246,1744521032379,-5297.40173086,0.00019178,2]
[357893247,1744521032399,-992.32608986,0.00019178,2]
[357893248,1744521032416,-1397.7819348,0.00019178,2]
[357893249,1744521032427,-2441.56500959,0.00019178,2]
[357893250,1744521032440,-6837.46523489,0.00019178,2]
[357893251,1744521032449,-246.31399968,0.00019178,2]
[357893252,1744521032461,-694.25600032,0.00019178,2]
[357893253,1744521032470,-424.60796765,0.00019178,2]
[357893254,1744521032480,-204.73883488,0.00019178,2]
[357893257,1744521037624,-295.26116512,0.00019178,2]
[357893258,1744521037634,-500.63160936,0.00019178,2]
[357893259,1744521037644,-13.43722552,0.00019178,2]
[357893260,1744521037655,-486.56277448,0.00019178,2]
[357893261,1744521037669,-500.0,0.00019178,2]
[357893262,1744521037679,-246.21208624,0.00019178,2]
[357893263,1744521037688,-500.0,0.00019178,2]
[357893264,1744521037697,-0.99908357,0.00019178,2]
[357893265,1744521037709,-499.00091643,0.00019178,2]
[357893266,1744521037718,-500.0,0.00019178,2]
[357893267,1744521037727,-440.65000413,0.00019178,2]
[357893268,1744521037736,-500.0,0.00019178,2]
[357893269,1744521037746,-500.0,0.00019178,2]
[357893270,1744521037755,-500.0,0.00019178,2]
[357893271,1744521037764,-500.0,0.00019178,2]
[357893272,1744521037774,-500.0,0.00019178,2]
[357893273,1744521037783,-500.0,0.00019178,2]
[357893274,1744521037792,-290.79896873,0.00019178,2]
[357893275,1744521037801,-500.28504367,0.00019178,2]
[357893276,1744521037811,-500.0,0.00019178,2]
[357893277,1744521037820,-500.0,0.00019178,2]
[357893278,1744521037829,-500.0,0.00019178,2]
[357893279,1744521037838,-500.0,0.00019178,2]
[357893280,1744521037847,-500.0,0.00019178,2]
[357893281,1744521037857,-500.0,0.00019178,2]
[357893282,1744521037866,-500.0,0.00019178,2]
[357893283,1744521037875,-500.0,0.00019178,2]
[357893284,1744521037884,-500.0,0.00019178,2]
[357893285,1744521037894,-500.0,0.00019178,2]
[357893286,1744521037903,-500.0,0.00019178,2]
[357893287,1744521037914,-2058.42,0.00019178,2]
[357893288,1744521037924,-500.0,0.00019178,2]
[357893289,1744521037933,-500.0,0.00019178,2]
[357893290,1744521037942,-500.0,0.00019178,2]
[357893291,1744521037951,-601.9884349,0.00019178,2]
[357893292,1744521037960,-500.0,0.00019178,2]
[357893293,1744521037969,-334.25043918,0.00019178,2]
[357893294,1744521037981,-165.74956082,0.00019178,2]
[357893295,1744521037990,-500.0,0.00019178,2]
[357893296,1744521037999,-136.75043917,0.00019178,2]
[357893297,1744521038010,-363.24956083,0.00019178,2]
[357893298,1744521038019,-54.78543917,0.00019178,2]
[357893299,1744521038030,-445.21456083,0.00019178,2]
[357893300,1744521038040,-500.0,0.00019178,2]
[357893301,1744521038049,-792.18,0.00019178,2]
[357893302,1744521038058,-398.0,0.00019178,2]
[357893303,1744521038066,-649.78,0.00019178,2]
[357893304,1744521038075,-500.0,0.00019178,2]
[357893305,1744521038084,-500.0,0.00019178,2]
[357893306,1744521038093,-500.0,0.00019178,2]
[357893307,1744521038102,-500.0,0.00019178,2]
[357893308,1744521038111,-500.0,0.00019178,2]
[357893309,1744521038120,-500.0,0.00019178,2]
[357893310,1744521038129,-500.0,0.00019178,2]
[357893311,1744521038138,-500.0,0.00019178,2]
[357893312,1744521038147,-500.0,0.00019178,2]
[357893313,1744521038156,-524.38345755,0.00019178,2]
[357893314,1744521038169,-252.7688098,0.00019178,2]
[357893315,1744521038181,-247.2311902,0.00019178,2]
[357893316,1744521038190,-500.0,0.00019178,2]
[357893317,1744521038199,-500.0,0.00019178,2]
[357893318,1744521038208,-500.0,0.00019178,2]
[357893319,1744521038217,-515.71141848,0.00019178,2]
[357893320,1744521038226,-205.64961042,0.00019178,2]
[357893321,1744521038235,-500.0,0.00019178,2]
[357893322,1744521038244,-274.44092661,0.00019178,2]
[357893323,1744521038254,-500.0,0.00019178,2]
[357893324,1744521038263,-500.0,0.00019178,2]
[357893325,1744521038272,-302.99694958,0.00019178,2]
[357893326,1744521038281,-500.0,0.00019178,2]
[357893327,1744521038290,-500.0,0.00019178,2]
[357893328,1744521038299,-1886.31,0.00019178,2]
[357893329,1744521038313,-621.09007926,0.00019178,2]
[357893330,1744521038322,-500.0,0.00019178,2]
[357893331,1744521038331,-500.0,0.00019178,2]
[357893332,1744521038340,-500.0,0.00019178,2]
[357893333,1744521038350,-500.0,0.00019178,2]
[357893334,1744521038359,-154.45956748,0.00019178,2]
[357893335,1744521038371,-577.31165299,0.00019178,2]
[357893341,1744521039598,-424.19377069,0.00019178,2]
[357893342,1744521039769,-329.48500884,0.00019178,2]
[357893343,1744521039779,-500.0,0.00019178,2]
[357893344,1744521039789,-500.0,0.00019178,2]
[357893345,1744521039799,-500.0,0.00019178,2]
[357893346,1744521039809,-500.0,0.00019178,2]
[357893347,1744521039819,-500.0,0.00019178,2]
[357893348,1744521039828,-500.0,0.00019178,2]
[357893349,1744521039838,-150.0,0.00019233,2]
[357893350,1744521039848,-200.0,0.00019288,2]
[357893351,1744521039858,-202.87264414,0.00019352,2]
[357893352,1744521039868,-918.17,0.00019368,2]
[357893353,1744521039878,-500.0,0.00019452,2]
[357893354,1744521039887,-282.78264585,0.00019452,2]
[357893355,1744521039897,-243.45,0.00019452,2]
[357893356,1744521039906,-500.0,0.00019452,2]
[357893357,1744521039918,-500.0,0.00019452,2]
[357893358,1744521039928,-500.0,0.00019452,2]
[357893359,1744521039938,-500.0,0.00019452,2]
[357893360,1744521039947,-500.0,0.00019452,2]
[357893361,1744521039956,-500.0,0.00019452,2]
[357893362,1744521039966,-500.0,0.00019452,2]
[357893363,1744521039975,-500.0,0.00019452,2]
[357893364,1744521039984,-500.0,0.00019452,2]
[357893365,1744521039993,-500.0,0.00019452,2]
[357893366,1744521040003,-500.0,0.00019452,2]
[357893367,1744521040012,-164.96,0.00019452,2]
[357893368,1744521040021,-388.53496153,0.00019452,2]
[357893369,1744521040030,-780.98,0.00019452,2]
[357893370,1744521040039,-500.0,0.00019452,2]
[357893371,1744521040048,-500.0,0.00019452,2]
[357893372,1744521040057,-775.79,0.00019452,2]
[357893373,1744521040066,-16966.54,0.00019452,2]
[357893374,1744521040075,-940.57,0.00019452,2]
[357893375,1744521040084,-500.0,0.00019452,2]
[357893376,1744521040093,-500.0,0.00019452,2]
[357893377,1744521040102,-500.0,0.00019452,2]
[357893378,1744521040111,-500.0,0.00019452,2]
[357893379,1744521040120,-500.0,0.00019452,2]
[357893380,1744521040129,-500.0,0.00019452,2]
[357893381,1744521040138,-500.0,0.00019452,2]
[357893382,1744521040147,-500.0,0.00019452,2]
[357893383,1744521040157,-500.0,0.00019452,2]
[357893384,1744521040167,-500.0,0.00019452,2]
[357893385,1744521040176,-500.0,0.00019452,2]
[357893386,1744521040186,-500.0,0.00019452,2]
[357893387,1744521040195,-500.0,0.00019452,2]
[357893388,1744521040204,-506.72,0.00019452,2]
[357893389,1744521040213,-2058.42,0.00019452,2]
[357893390,1744521040223,-500.0,0.00019452,2]
[357893391,1744521040231,-500.0,0.00019452,2]
[357893392,1744521040241,-500.0,0.00019452,2]
[357893393,1744521040250,-500.0,0.00019452,2]
[357893394,1744521040259,-500.0,0.00019452,2]
[357893395,1744521040276,-792.18,0.00019452,2]
[357893397,1744521040285,-649.78,0.00019452,2]
[357893399,1744521040295,-500.0,0.00019452,2]
[357893401,1744521040307,-500.0,0.00019452,2]
[357893402,1744521040317,-500.0,0.00019452,2]
[357893403,1744521040326,-501.5795905,0.00019452,2]
[357893404,1744521040335,-500.0,0.00019452,2]
[357893405,1744521040345,-500.0,0.00019452,2]
[357893406,1744521040354,-500.0,0.00019452,2]
[357893407,1744521040362,-500.0,0.00019452,2]
[357893408,1744521040371,-500.0,0.00019452,2]
[357893409,1744521040383,-1886.31,0.00019452,2]
[357893410,1744521040392,-500.0,0.00019452,2]
[357893411,1744521040401,-500.0,0.00019452,2]
[357893412,1744521040411,-1485.45,0.00019452,2]
[357893413,1744521040420,-331.81138499,0.00019452,2]
[357893414,1744521040429,-500.0,0.00019452,2]
[357893415,1744521040439,-500.0,0.00019452,2]
[357893416,1744521040448,-1000.0,0.00019526,2]
[357893417,1744521040457,-2500.0,0.00019526,2]
[357893418,1744521040466,-10105.1561,0.00019626,2]
[357893419,1744521040475,-1000.0,0.00019626,2]
[357893420,1744521040484,-1661.0542,0.00019626,2]
[357893421,1744521040494,-203.0406,0.00019626,2]
[357893422,1744521040504,-42308.4969,0.00019626,2]
[357893423,1744521040513,-529.2564,0.00019626,2]
[357893424,1744521040522,-698.0,0.00019632,2]
[357893425,1744521040532,-152.0,0.00019632,2]
[357893426,1744521040541,-500.0,0.00019675,2]
[357893427,1744521040551,-185.66,0.00019678,2]
[357893428,1744521040560,-8340.1,0.000197,2]
[357893429,1744521040570,-500.0,0.00019726,2]
[357893430,1744521040579,-500.0,0.00019726,2]
[357893431,1744521040589,-500.0,0.00019726,2]
[357893432,1744521040598,-500.0,0.00019726,2]
[357893433,1744521040607,-500.0,0.00019726,2]
[357893434,1744521040617,-500.0,0.00019726,2]
[357893435,1744521040626,-629.006119,0.00019726,2]
[357893436,1744521040636,-500.0,0.00019726,2]
[357893437,1744521040645,-500.0,0.00019726,2]
[357893438,1744521040654,-500.0,0.00019726,2]
[357893439,1744521040665,-500.0,0.00019726,2]
[357893440,1744521040674,-438.03832555,0.00019726,2]
[357893441,1744521040683,-780.98,0.00019726,2]
[357893442,1744521040692,-500.0,0.00019726,2]
[357893443,1744521040701,-500.0,0.00019726,2]
[357893444,1744521040710,-775.79,0.00019726,2]
[357893445,1744521040719,-16966.54,0.00019726,2]
[357893446,1744521040728,-940.57,0.00019726,2]
[357893447,1744521040736,-500.0,0.00019726,2]
[357893448,1744521040745,-500.0,0.00019726,2]
[357893449,1744521040754,-500.0,0.00019726,2]
[357893450,1744521040763,-500.0,0.00019726,2]
[357893451,1744521040772,-500.3560959,0.00019726,2]
[357893452,1744521040781,-500.0,0.00019726,2]
[357893453,1744521040790,-2058.42,0.00019726,2]
[357893454,1744521040799,-500.0,0.00019726,2]
[357893455,1744521040808,-500.0,0.00019726,2]
[357893456,1744521040816,-500.0,0.00019726,2]
[357893457,1744521040825,-792.18,0.00019726,2]
[357893458,1744521040835,-649.78,0.00019726,2]
[357893459,1744521040843,-500.0,0.00019726,2]
[357893460,1744521040853,-500.0,0.00019726,2]
[357893461,1744521040863,-500.0,0.00019726,2]
[357893462,1744521040872,-500.0,0.00019726,2]
[357893463,1744521040881,-500.0,0.00019726,2]
[357893464,1744521040890,-500.0,0.00019726,2]
[357893465,1744521040899,-500.0,0.00019726,2]
[357893466,1744521040908,-500.0,0.00019726,2]
[357893467,1744521040919,-1886.31,0.00019726,2]
[357893468,1744521040927,-500.0,0.00019726,2]
[357893469,1744521040936,-500.0,0.00019726,2]
[357893470,1744521040945,-1485.45,0.00019726,2]
[357893471,1744521040954,-500.0,0.00019726,2]
[357893472,1744521040963,-500.0,0.00019726,2]
[357893473,1744521040972,-176.86,0.00019842,2]
[357893474,1744521040982,-13181.57497325,0.000199,2]
[357893475,1744521040991,-150.0,0.00019918,2]
[357893476,1744521041000,-150.0,0.00019918,2]
[357893477,1744521041009,-150.0,0.00019918,2]
[357893478,1744521041018,-150.0,0.00019918,2]
[357893479,1744521041027,-581.429,0.00019937,2]
[357893480,1744521041037,-3640.14243897,0.00019967,2]
[357893481,1744521041046,-6496.0,0.00019973,2]
[357893482,1744521041055,-500.0,0.00019973,2]
[357893483,1744521041064,-500.99669139,0.00019973,2]
[357893484,1744521041073,-504.72204853,0.00019973,2]
[357893485,1744521041082,-500.0,0.00019973,2]
[357893486,1744521041092,-500.0,0.00019973,2]
[357893487,1744521041101,-160.98846147,0.00019973,2]
[357893488,1744521041110,-500.0,0.00019973,2]
[357893489,1744521041119,-2086.1451803,0.00019986,2]
[357893490,1744521041129,-9277.240358,0.00019986,2]
[357893491,1744521041139,-34182.0211212,0.00019986,2]
[357893492,1744521041148,-1079.0,0.0002,2]
[357893493,1744521041157,-16329.46657641,0.0002,2]
[357893494,1744521041168,-519.35359288,0.0002,2]
[357893495,1744521041177,-235645.49281517,0.0002,2]
[357893496,1744521041190,-1740.24612185,0.0002,2]
[357893497,1744521041201,-270.77134836,0.0002,2]
[357893498,1744521041212,-846.305,0.0002,2]
[357893499,1744521041223,-1239.3194828,0.0002,2]
[357893500,1744521041235,-3848.54906036,0.0002,2]
[357893501,1744521041246,-4124.09701614,0.0002,2]
[357893502,1744521041354,-281.77534434,0.0002,2]
[357893503,1744521041366,-617.23609784,0.0002,2]
[357893511,1744521043403,-7870.46091239,0.0002,2]
[357893515,1744521044889,-673.6150002,0.0002,2]
[357893516,1744521044900,-834.16499975,0.0002,2]
[357893518,1744521045488,-901.9,0.0002,2]
[357893519,1744521045707,-2401.38027186,0.0002,2]
[357893520,1744521045719,-7792.4668736,0.0002,2]
[357893521,1744521045730,-10890.46,0.0002,2]
[357893522,1744521045740,-1692.0146,0.0002,2]
[357893523,1744521121663,155.551447,0.0003,30]
[357893524,1744521122075,155.551447,0.0003,30]
[357893525,1744521122368,155.551447,0.0002,3]
[357893526,1744521122658,155.551447,0.00019998,3]
[357893527,1744521122938,155.551447,0.0002,5]
[357893528,1744521123450,155.551447,0.0002,5]
[357893529,1744521123532,155.551447,0.0003,31]
[357893530,1744521123816,155.551447,0.0003,31]
[357893531,1744521124685,155.551447,0.0002,4]
[357893532,1744521125005,155.551447,0.0002,4]
[357893533,1744521125375,155.551447,0.000199,7]
[357893534,1744521125665,155.551447,0.00019791,7]
[357893535,1744521129899,283.36916594,3e-05,2]
[357893536,1744521129922,7347.57167647,3e-05,2]
[357893537,1744521129953,1926.1876192,3e-05,2]
[357893538,1744521129982,2156.40986105,3e-05,2]
[357893539,1744521130011,430.79065435,3e-05,2]
[357893540,1744521150411,170.83,0.00013699,2]
[357893541,1744521150790,170.83,0.00013699,2]
[357893542,1744521151719,170.83,0.00013699,2]
[357893543,1744521151924,170.85795432,0.00013699,2]
[357893545,1744521445935,536.13,0.00016977,2]
[357893547,1744521816095,159.485991,0.0003,30]
[357893548,1744521816661,159.485991,0.0002,4]
[357893549,1744522037216,205.0,9.8e-05,2]
[357893550,1744522048545,91.50105574,0.0001,2]
[357893551,1744522048572,67.25645735,0.0001,2]
[357893552,1744522052520,159.485991,0.0003,30]
[357893553,1744522097925,200.0,0.0001634,2]
[357893554,1744522099655,194.65874869,0.000135,2]
[357893555,1744522118223,285.09574773,0.000149,2]
[357893556,1744522123322,258.69163081,0.000107,2]
[357893569,1744522232143,-2551.26897805,0.00018,2]
[357893570,1744522232153,-496.97401403,0.00018174,2]
[357893571,1744522232162,-169.72,0.00018274,2]
[357893572,1744522232172,-434.75377164,0.00018302,2]
[357893573,1744522232182,-1000.0,0.00018361,2]
[357893574,1744522232191,-150.0,0.00018444,2]
[357893575,1744522232200,-434.75377164,0.00018472,2]
[357893576,1744522232210,-1566.63,0.00018478,2]
[357893577,1744522232220,-889.87,0.00018644,2]
[357893578,1744522232231,-1852.42,0.00018843,2]
[357893579,1744522232241,-434.75377164,0.00018845,2]
[357893580,1744522232251,-243.88,0.00018857,2]
[357893581,1744522232260,-300.0,0.00018893,2]
[357893582,1744522232270,-2000.0,0.00018894,2]
[357893583,1744522232280,-250.0,0.00019,2]
[357893584,1744522232290,-434.75377164,0.00019021,2]
[357893585,1744522232299,-250.0,0.0001905,2]
[357893586,1744522232308,-800.0,0.00019067,2]
[357893587,1744522232318,-224.4549,0.00019076,2]
[357893588,1744522232327,-850.0,0.00019076,2]
[357893589,1744522232336,-39829.51892244,0.00019077,2]
[357893590,1744522232346,-5248.8036,0.00019077,2]
[357893591,1744522232355,-398.96,0.00019146,2]
[357893592,1744522232364,-500.0,0.00019178,2]
[357893593,1744522232373,-412.92,0.00019178,2]
[357893594,1744522232383,-500.0,0.00019178,2]
[357893595,1744522232392,-578.89775878,0.00019178,2]
[357893596,1744522232401,-500.0,0.00019178,2]
[357893597,1744522232411,-314.88974428,0.00019178,2]
[357893598,1744522232420,-500.0,0.00019178,2]
[357893599,1744522232429,-500.0,0.00019178,2]
[357893600,1744522232438,-500.0,0.00019178,2]
[357893601,1744522232448,-500.28504367,0.00019178,2]
[357893602,1744522232457,-500.0,0.00019178,2]
[357893603,1744522232467,-500.0,0.00019178,2]
[357893604,1744522232477,-620.49208043,0.00019178,2]
[357893606,1744522232486,-2360.82,0.00019178,2]
[357893608,1744522232495,-500.0,0.00019178,2]
[357893610,1744522232504,-500.0,0.00019178,2]
[357893612,1744522232514,-500.0,0.00019178,2]
[357893614,1744522232524,-683.36,0.00019178,2]
[357893616,1744522232533,-678.81,0.00019178,2]
[357893617,1744522232543,-500.0,0.00019178,2]
[357893618,1744522232552,-834.65,0.00019178,2]
[357893619,1744522232562,-232.06852963,0.00019178,2]
[357893620,1744522232572,-500.0,0.00019178,2]
[357893621,1744522232582,-458.30229338,0.00019178,2]
[357893622,1744522232591,-150.0,0.00019178,2]
[357893623,1744522232602,-290.79896873,0.00019178,2]
[357893624,1744522232611,-500.0,0.00019178,2]
[357893625,1744522232621,-499.00091643,0.00019178,2]
[357893626,1744522232633,-500.0,0.00019178,2]
[357893627,1744522232642,-500.0,0.00019178,2]
[357893628,1744522232651,-7124.0959636,0.00019178,2]
[357893629,1744522232663,-699.0406038,0.00019178,2]
[357893630,1744522232680,-492.90731942,0.00019178,2]
[357893632,1744522237870,-200.0,0.00019049,2]
[357893633,1744522237880,-500.0,0.00019171,2]
[357893634,1744522237889,-500.0,0.00019171,2]
[357893635,1744522237898,-216.31196887,0.00019171,2]
[357893636,1744522237909,-283.68803113,0.00019171,2]
[357893637,1744522237919,-143.55101289,0.00019171,2]
[357893638,1744522237930,-356.44898711,0.00019171,2]
[357893639,1744522237939,-500.0,0.00019171,2]
[357893640,1744522237949,-500.0,0.00019171,2]
[357893641,1744522237959,-368.69953736,0.00019171,2]
[357893642,1744522237970,-131.30046264,0.00019171,2]
[357893643,1744522237980,-500.0,0.00019171,2]
[357893644,1744522237989,-500.0,0.00019171,2]
[357893645,1744522237998,-500.0,0.00019171,2]
[357893646,1744522238008,-500.0,0.00019171,2]
[357893647,1744522238017,-500.0,0.00019171,2]
[357893648,1744522238026,-500.0,0.00019171,2]
[357893649,1744522238035,-500.0,0.00019171,2]
[357893650,1744522238044,-500.0,0.00019171,2]
[357893651,1744522238053,-500.0,0.00019171,2]
[357893652,1744522238062,-500.0,0.00019171,2]
[357893653,1744522238071,-500.0,0.00019171,2]
[357893655,1744522238080,-500.0,0.00019171,2]
[357893657,1744522238089,-500.0,0.00019171,2]
[357893659,1744522238098,-500.0,0.00019171,2]
[357893661,1744522238107,-500.0,0.00019171,2]
[357893663,1744522238116,-500.0,0.00019171,2]
[357893665,1744522238125,-500.0,0.00019171,2]
[357893667,1744522238134,-500.0,0.00019171,2]
[357893669,1744522238143,-500.0,0.00019171,2]
[357893671,1744522238153,-500.0,0.00019171,2]
[357893673,1744522238162,-500.0,0.00019171,2]
[357893675,1744522238171,-500.0,0.00019171,2]
[357893677,1744522238180,-500.0,0.00019171,2]
[357893678,1744522238189,-500.0,0.00019171,2]
[357893681,1744522238198,-500.0,0.00019171,2]
[357893683,1744522238207,-500.0,0.00019171,2]
[357893685,1744522238216,-500.0,0.00019171,2]
[357893687,1744522238225,-500.0,0.00019171,2]
[357893689,1744522238235,-500.0,0.00019171,2]
[357893691,1744522238244,-500.0,0.00019171,2]
[357893693,1744522238253,-594.0933444,0.00019171,2]
[357893696,1744522238265,-24.62290788,0.00019171,2]
[357893698,1744522238274,-500.0,0.00019171,2]
[357893700,1744522238283,-500.0,0.00019171,2]
[357893702,1744522238292,-500.0,0.00019171,2]
[357893703,1744522238301,-500.0,0.00019171,2]
[357893705,1744522238310,-500.0,0.00019171,2]
[357893707,1744522238319,-500.0,0.00019171,2]
[357893709,1744522238328,-500.0,0.00019171,2]
[357893711,1744522238338,-284.37633032,0.00019171,2]
[357893713,1744522238350,-215.62366968,0.00019171,2]
[357893715,1744522238359,-500.0,0.00019171,2]
[357893717,1744522238368,-500.0,0.00019171,2]
[357893719,1744522238378,-38.25133032,0.00019178,2]
[357893756,1744522239963,-6660.52478286,0.00019178,2]
[357893757,1744522239974,-500.0,0.00019178,2]
[357893758,1744522239984,-500.0,0.00019178,2]
[357893759,1744522239994,-500.0,0.00019178,2]
[357893760,1744522240003,-500.0,0.00019178,2]
[357893761,1744522240013,-440.65000413,0.00019178,2]
[357893762,1744522240023,-500.0,0.00019178,2]
[357893763,1744522240032,-500.0,0.00019178,2]
[357893764,1744522240041,-500.0,0.00019178,2]
[357893765,1744522240051,-500.0,0.00019178,2]
[357893766,1744522240060,-500.0,0.00019178,2]
[357893767,1744522240069,-500.0,0.00019178,2]
[357893768,1744522240079,-500.0,0.00019178,2]
[357893769,1744522240088,-500.0,0.00019178,2]
[357893770,1744522240099,-894.41,0.00019178,2]
[357893771,1744522240109,-500.0,0.00019178,2]
[357893772,1744522240118,-500.0,0.00019178,2]
[357893773,1744522240126,-467.50721301,0.00019178,2]
[357893774,1744522240138,-32.49278699,0.00019178,2]
[357893775,1744522240148,-568.56,0.00019178,2]
[357893776,1744522240157,-500.0,0.00019178,2]
[357893777,1744522240166,-500.0,0.00019178,2]
[357893778,1744522240175,-500.0,0.00019178,2]
[357893779,1744522240185,-500.0,0.00019178,2]
[357893780,1744522240194,-500.0,0.00019178,2]
[357893781,1744522240203,-601.9884349,0.00019178,2]
[357893782,1744522240212,-500.0,0.00019178,2]
[357893783,1744522240222,-500.0,0.00019178,2]
[357893784,1744522240231,-500.0,0.00019178,2]
[357893785,1744522240240,-693.16,0.00019178,2]
[357893786,1744522240249,-500.0,0.00019178,2]
[357893787,1744522240258,-500.0,0.00019178,2]
[357893788,1744522240268,-500.0,0.00019178,2]
[357893789,1744522240278,-500.0,0.00019178,2]
[357893790,1744522240287,-500.0,0.00019178,2]
[357893791,1744522240296,-500.0,0.00019178,2]
[357893792,1744522240305,-348.15617624,0.00019178,2]
[357893793,1744522240313,-500.0,0.00019178,2]
[357893794,1744522240323,-1650.52,0.00019178,2]
[357893795,1744522240332,-597.3747322,0.00019178,2]
[357893796,1744522240341,-280.0,0.00019233,2]
[357893797,1744522240350,-536.13,0.00019241,2]
[357893798,1744522240359,-651.7275,0.00019352,2]
[357893799,1744522240368,-434.75377164,0.00019391,2]
[357893800,1744522240378,-500.0,0.00019452,2]
[357893801,1744522240387,-500.0,0.00019452,2]
[357893802,1744522240397,-500.0,0.00019452,2]
[357893803,1744522240406,-291.98003968,0.00019452,2]
[357893804,1744522240415,-500.0,0.00019452,2]
[357893805,1744522240424,-500.0,0.00019452,2]
[357893806,1744522240433,-500.0,0.00019452,2]
[357893807,1744522240443,-2360.82,0.00019452,2]
[357893808,1744522240451,-500.0,0.00019452,2]
[357893809,1744522240460,-500.0,0.00019452,2]
[357893810,1744522240469,-500.0,0.00019452,2]
[357893811,1744522240479,-683.36,0.00019452,2]
[357893812,1744522240488,-678.81,0.00019452,2]
[357893813,1744522240497,-500.0,0.00019452,2]
[357893814,1744522240506,-834.65,0.00019452,2]
[357893815,1744522240516,-500.0,0.00019452,2]
[357893816,1744522240525,-500.0,0.00019452,2]
[357893817,1744522240534,-500.0,0.00019452,2]
[357893818,1744522240543,-15014.82,0.00019452,2]
[357893819,1744522240552,-500.0,0.00019452,2]
[357893820,1744522240561,-500.0,0.00019452,2]